[Event "44th Chess Olympiad Women 2022"]
[Site "Chennai"]
[Date "2022.08.02"]
[Round "5.3"]
[White "Batsiashvili, Nino"]
[Black "Padmini, Rout"]
[Result "1/2-1/2"]
[ECO "D36"]
[WhiteElo "2466"]
[BlackElo "2374"]
[Annotator "RC"]
[PlyCount "117"]
[EventDate "2022.07.29"]
[EventType "team-tourn"]
[EventCountry "IND"]
[SourceTitle "playchess.com"]
[Source "ChessBase"]
[SourceQuality "1"]
[WhiteTeam "Georgia"]
[BlackTeam "India"]
[WhiteTeamCountry "GEO"]
[BlackTeamCountry "IND"]
[TimeControl "40/5400+30:1800+30"]

1. d4 {[%emt 0:00:03]} Nf6 {[%emt 0:00:09]} 2. c4 {[%emt 0:00:07]} e6 {[%emt 0:00:11]} 3. Nc3 {[%emt 0:02:04]} d5 {[%emt 0:00:07]} 4. cxd5 {[%emt 0:02:20]} exd5 {[%emt 0:00:15]} 5. Bg5 {[%emt 0:00:36]} c6 {[%emt 0:00:09]} 6. e3 {[%emt 0:01:08]} Be7 {[%emt 0:00:51]} 7. Bd3 {[%emt 0:00:46]} Nbd7 {[%emt 0:00:07]} 8. Qc2 {[%emt 0:07:44]} Nf8 {[%emt 0:00:52]} 9. Nge2 {[%emt 0:03:47]} Ne6 {[%emt 0:09:15]} 10. Bh4 {[%emt 0:00:53]} Nh5 {[%emt 0:02:49]} 11. Bxe7 {[%emt 0:05:40]} Qxe7 {[%emt 0:00:07]} 12. O-O-O {[%emt 0:09:03]} Nf6 {[%emt 0:04:42]} 13. Kb1 {[%emt 0:00:07]} Nc7 {[%emt 0:03:20]} 14. h3 {[%emt 0:02:54]} Bd7 {[%emt 0:03:48]} 15. g4 {[%emt 0:04:08]} O-O-O {[%emt 0:02:41]} 16. Ng3 {[%emt 0:03:01]} g6 {[%emt 0:05:53]} 17. Rhe1 {[%emt 0:04:10]} Kb8 {[%emt 0:04:29]} 18. Na4 {[%emt 0:01:25]} h5 {[%emt 0:04:37]} 19. g5 {[%emt 0:02:12]} Ne4 {[%emt 0:03:01]} 20. Bxe4 {[%emt 0:06:56]} dxe4 {[%emt 0:01:01]} 21. h4 {[%emt 0:00:04]} Bg4 {[%emt 0:07:05]} 22. Rc1 {[%emt 0:00:18]} Bf3 {[%emt 0:04:55]} 23. Nc5 {[%emt 0:04:39]} Rhe8 {[%emt 0:00:34]} 24. Qb3 {[%emt 0:04:33]} b6 {[%emt 0:15:57]} 25. Rc2 {[%emt 0:03:03]} Kc8 {[%emt 0:04:10]} 26. Na4 {[%emt 0:02:41]} Qe6 {[%emt 0:02:23]} 27. Rec1 {[%emt 0:03:37]} Rd6 {[%emt 0:05:36]} 28. Qb4 {[%emt 0:03:07]} Kd7 {[%emt 0:07:27]} 29. Nc3 {[%emt 0:04:39]} Nd5 {[%emt 0:03:08]} 30. Qa4 {[%emt 0:06:06]} a5 {[%emt 0:00:45]} 31. Nxd5 {[%emt 0:00:17]} Qxd5 {[%emt 0:00:14]} 32. Rc3 {[%emt 0:01:16]} Ra8 {[%emt 0:04:31]} 33. Qc2 {[%emt 0:00:54]} Kc7 {[%emt 0:00:49]} 34. Nf1 {[%emt 0:02:03]} Re8 {[%emt 0:00:42]} 35. Ka1 {[%emt 0:00:48]} Bg4 {[%emt 0:00:40]} 36. Nd2 {[%emt 0:00:16]} Be2 {[%emt 0:00:04]} 37. Nxe4 {[%emt 0:01:28]} Rxe4 {[%emt 0:00:24]} 38. Qxe2 {[%emt 0:00:04]} Qxd4 {[%emt 0:01:06]} 39. Qa6 {[%emt 0:00:55]} Qd5 {[%emt 0:00:28]} 40. Qa7+ {[%emt 0:00:21]} Kd8 {[%emt 0:00:01]} 41. Qxb6+ {[%emt 0:30:53]} Ke7 {[%emt 0:01:56]} 42. Rc5 {[%emt 0:00:00]} Qd2 {[%emt 0:03:08]} 43. a3 {[%emt 0:00:00]} Rxh4 {[%emt 0:07:08]} 44. Qc7+ {[%emt 0:00:00]} Kf8 {[%emt 0:02:51]} 45. Rxc6 {[%emt 0:00:00]} Rxc6 {[%emt 0:00:40]} 46. Qxc6 {[%emt 0:00:00]} a4 {[%emt 0:00:45]} 47. Ka2 {[%emt 0:00:59]} Qd3 {[%emt 0:04:16]} 48. Rc3 {[%emt 0:08:58]} Qd1 {[%emt 0:00:48]} 49. Qc5+ {[%emt 0:01:29]} Kg7 {[%emt 0:00:35]} 50. Rc1 {[%emt 0:00:22]} Qb3+ {[%emt 0:01:14]} 51. Ka1 {[%emt 0:00:01]} Rg4 {[%emt 0:03:30]} 52. Qe5+ {[%emt 0:01:47]} Kh7 {[%emt 0:00:25]} 53. Qf6 {[%emt 0:01:04]} Rg2 {[%emt 0:02:44]} 54. f4 {[%emt 0:00:45]} Rd2 {[%emt 0:00:54]} 55. f5 {[%emt 0:00:26]} Rd1 {[%emt 0:00:18]} 56. fxg6+ {[%emt 0:00:20]} fxg6 {[%emt 0:00:04]} 57. Qe7+ {[%emt 0:00:28]} Kg8 {[%emt 0:00:07]} 58. Qe8+ {[%emt 0:00:30]} Kg7 {[%emt 0:00:31]} 59. Qe7+ {[%emt 0:00:10]} 1/2-1/2

[Event "44th Chess Olympiad Women 2022"]
[Site "Chennai"]
[Date "2022.08.02"]
[Round "5.3"]
[White "Arabidze, Meri"]
[Black "Divya Deshmukh"]
[Result "1-0"]
[ECO "D02"]
[WhiteElo "2426"]
[BlackElo "2319"]
[Annotator "RC"]
[PlyCount "85"]
[EventDate "2022.07.29"]
[EventType "team-tourn"]
[EventCountry "IND"]
[SourceTitle "playchess.com"]
[Source "ChessBase"]
[SourceQuality "1"]
[WhiteTeam "Georgia"]
[BlackTeam "India"]
[WhiteTeamCountry "GEO"]
[BlackTeamCountry "IND"]
[TimeControl "40/5400+30:1800+30"]

1. Nf3 {[%emt 0:00:08]} d5 {[%emt 0:00:30]} 2. g3 {[%emt 0:00:17]} Nd7 {[%emt 0:02:09]} 3. d4 {[%emt 0:00:25]} b5 {[%emt 0:00:10]} 4. a4 {[%emt 0:00:47]} b4 {[%emt 0:00:04]} 5. c4 {[%emt 0:00:21]} e6 {[%emt 0:00:18]} 6. Nbd2 {[%emt 0:01:26]} Ngf6 {[%emt 0:00:18]} 7. Bg2 {[%emt 0:00:25]} Bb7 {[%emt 0:06:58]} 8. O-O {[%emt 0:03:10]} c5 {[%emt 0:01:53]} 9. cxd5 {[%emt 0:09:00]} Bxd5 {[%emt 0:06:00]} 10. Re1 {[%emt 0:03:34]} Be7 {[%emt 0:13:42]} 11. e4 {[%emt 0:06:38]} Bb7 {[%emt 0:04:43]} 12. a5 {[%emt 0:01:28]} O-O {[%emt 0:01:55]} 13. e5 {[%emt 0:14:25]} Nd5 {[%emt 0:01:00]} 14. a6 {[%emt 0:03:18]} Bc6 {[%emt 0:01:15]} 15. dxc5 {[%emt 0:00:33]} Nxc5 {[%emt 0:19:23]} 16. Nd4 {[%emt 0:01:02]} Rc8 {[%emt 0:00:23]} 17. Nxc6 {[%emt 0:13:58]} Rxc6 {[%emt 0:01:20]} 18. Bf1 {[%emt 0:01:59]} Qc8 {[%emt 0:08:31]} 19. Nf3 {[%emt 0:07:47]} Nxa6 {[%emt 0:06:53]} 20. Nd4 {[%emt 0:00:50]} Rb6 {[%emt 0:00:13]} 21. Qe2 {[%emt 0:06:12]} Nb8 {[%emt 0:06:11]} 22. Qg4 {[%emt 0:04:03]} f5 {[%emt 0:11:54]} 23. exf6 {[%emt 0:02:51]} Nxf6 {[%emt 0:01:08]} 24. Qe2 {[%emt 0:00:52]} Bc5 {[%emt 0:01:24]} 25. Nb3 {[%emt 0:01:15]} Nd5 {[%emt 0:02:27]} 26. Nxc5 {[%emt 0:00:47]} Qxc5 {[%emt 0:00:01]} 27. Rxa7 {[%emt 0:06:13]} Rd6 {[%emt 0:00:13]} 28. Ra8 {[%emt 0:03:02]} Qc6 {[%emt 0:02:04]} 29. Ra1 {[%emt 0:01:20]} Qd7 {[%emt 0:01:27]} 30. Bh3 {[%emt 0:01:02]} Re8 {[%emt 0:00:28]} 31. Bg5 {[%emt 0:03:39]} Nc6 {[%emt 0:00:24]} 32. Rad1 {[%emt 0:00:17]} Kh8 {[%emt 0:00:35]} 33. Qh5 {[%emt 0:02:16]} g6 {[%emt 0:00:29]} 34. Qe2 {[%emt 0:01:02]} Qg7 {[%emt 0:00:27]} 35. Be3 {[%emt 0:00:48]} e5 {[%emt 0:00:34]} 36. Bc5 {[%emt 0:00:20]} Rdd8 {[%emt 0:00:09]} 37. Bg2 {[%emt 0:00:29]} Nde7 {[%emt 0:00:45]} 38. Qc4 {[%emt 0:00:56]} Qf6 {[%emt 0:00:40]} 39. Bxb4 {[%emt 0:00:29]} Nd4 {[%emt 0:00:27]} 40. Bc3 {[%emt 0:00:22]} Nef5 {[%emt 0:00:22]} 41. Qa4 {[%emt 0:03:02]} Rf8 {[%emt 0:06:42]} 42. f4 {[%emt 0:04:33]} exf4 {[%emt 0:11:19]} 43. g4 {[%emt 0:06:31]} 1-0

[Event "44th Chess Olympiad Women 2022"]
[Site "Chennai"]
[Date "2022.08.02"]
[Round "5.3"]
[White "Vantika Agrawal"]
[Black "Dzagnidze, Nana"]
[Result "1/2-1/2"]
[ECO "A70"]
[WhiteElo "2371"]
[BlackElo "2531"]
[Annotator "RC"]
[PlyCount "111"]
[EventDate "2022.07.29"]
[EventType "team-tourn"]
[EventCountry "IND"]
[SourceTitle "playchess.com"]
[Source "ChessBase"]
[SourceQuality "1"]
[WhiteTeam "India"]
[BlackTeam "Georgia"]
[WhiteTeamCountry "IND"]
[BlackTeamCountry "GEO"]
[TimeControl "40/5400+30:1800+30"]

1. d4 {[%emt 0:00:22]} Nf6 {[%emt 0:00:08]} 2. c4 {[%emt 0:00:17]} e6 {[%emt 0:00:07]} 3. Nf3 {[%emt 0:00:05]} c5 {[%emt 0:00:24]} 4. d5 {[%emt 0:00:26]} exd5 {[%emt 0:00:14]} 5. cxd5 {[%emt 0:00:06]} g6 {[%emt 0:00:08]} 6. Nc3 {[%emt 0:05:10]} d6 {[%emt 0:00:30]} 7. Bf4 {[%emt 0:04:05]} Bg7 {[%emt 0:00:55]} 8. Qa4+ {[%emt 0:07:14]} Bd7 {[%emt 0:02:31]} 9. Qb3 {[%emt 0:00:59]} Qc7 {[%emt 0:00:08]} 10. e4 {[%emt 0:10:01]} O-O {[%emt 0:04:02]} 11. Nd2 {[%emt 0:04:40]} Nh5 {[%emt 0:10:42]} 12. Be3 {[%emt 0:01:23]} f5 {[%emt 0:00:15]} 13. exf5 {[%emt 0:01:11]} gxf5 {[%emt 0:00:16]} 14. g3 {[%emt 0:06:35]} Na6 {[%emt 0:06:41]} 15. Nb5 {[%emt 0:19:28]} Bxb5 {[%emt 0:10:07]} 16. Bxb5 {[%emt 0:00:47]} Kh8 {[%emt 0:00:14]} 17. O-O-O {[%emt 0:06:09]} f4 {[%emt 0:21:41]} 18. gxf4 {[%emt 0:00:59]} c4 {[%emt 0:00:40]} 19. Qxc4 {[%emt 0:04:22]} Qf7 {[%emt 0:00:17]} 20. Kb1 {[%emt 0:01:46]} Rac8 {[%emt 0:01:13]} 21. Qb3 {[%emt 0:02:15]} Nxf4 {[%emt 0:06:16]} 22. Rc1 {[%emt 0:11:03]} Nc5 {[%emt 0:09:29]} 23. Bxc5 {[%emt 0:01:51]} dxc5 {[%emt 0:00:26]} 24. d6 {[%emt 0:03:27]} Qg6+ {[%emt 0:02:18]} 25. Qc2 {[%emt 0:00:27]} Qxd6 {[%emt 0:00:34]} 26. Ne4 {[%emt 0:00:44]} Qe7 {[%emt 0:04:55]} 27. h4 {[%emt 0:01:29]} c4 {[%emt 0:03:10]} 28. Ng5 {[%emt 0:04:50]} Bf6 {[%emt 0:02:12]} 29. Rce1 {[%emt 0:01:06]} Qg7 {[%emt 0:01:32]} 30. Rhg1 {[%emt 0:01:39]} Nd3 {[%emt 0:02:33]} 31. Rd1 {[%emt 0:00:21]} Bxg5 {[%emt 0:05:06]} 32. Rxg5 {[%emt 0:00:04]} Qd4 {[%emt 0:00:05]} 33. Bxc4 {[%emt 0:00:57]} Qxb2+ {[%emt 0:05:41]} 34. Qxb2+ {[%emt 0:00:04]} Nxb2 {[%emt 0:00:03]} 35. Kxb2 {[%emt 0:00:15]} Rxc4 {[%emt 0:00:06]} 36. h5 {[%emt 0:00:53]} Rcf4 {[%emt 0:01:17]} 37. Rd7 {[%emt 0:00:58]} Rxf2+ {[%emt 0:00:28]} 38. Kb3 {[%emt 0:00:30]} R2f3+ {[%emt 0:00:58]} 39. Kc2 {[%emt 0:00:27]} R3f7 {[%emt 0:01:01]} 40. Rxf7 {[%emt 0:00:26]} Rxf7 {[%emt 0:00:03]} 41. a4 {[%emt 0:07:04]} Rg7 {[%emt 0:10:19]} 42. Rc5 {[%emt 0:01:06]} Rd7 {[%emt 0:00:25]} 43. Rg5 {[%emt 0:00:59]} b6 {[%emt 0:06:26]} 44. a5 {[%emt 0:03:31]} Rg7 {[%emt 0:06:13]} 45. Rd5 {[%emt 0:07:12]} Rc7+ {[%emt 0:00:03]} 46. Kd3 {[%emt 0:01:01]} Kg7 {[%emt 0:00:53]} 47. axb6 {[%emt 0:00:08]} axb6 {[%emt 0:00:01]} 48. Rd6 {[%emt 0:00:24]} b5 {[%emt 0:00:57]} 49. Rb6 {[%emt 0:00:39]} Rc5 {[%emt 0:00:17]} 50. h6+ {[%emt 0:00:03]} Kf7 {[%emt 0:00:03]} 51. Ke4 {[%emt 0:01:29]} Rh5 {[%emt 0:03:15]} 52. Rb7+ {[%emt 0:00:40]} Kg6 {[%emt 0:00:06]} 53. Rb6+ {[%emt 0:00:01]} Kg5 {[%emt 0:00:09]} 54. Rxb5+ {[%emt 0:00:07]} Kxh6 {[%emt 0:00:05]} 55. Rxh5+ {[%emt 0:00:05]} Kxh5 {[%emt 0:00:04]} 56. Kf3 {[%emt 0:00:02]} 1/2-1/2

[Event "44th Chess Olympiad Women 2022"]
[Site "Chennai"]
[Date "2022.08.02"]
[Round "5.3"]
[White "Soumya, Swaminathan"]
[Black "Javakhishvili, Lela"]
[Result "0-1"]
[ECO "E12"]
[WhiteElo "2335"]
[BlackElo "2476"]
[Annotator "RC"]
[PlyCount "100"]
[EventDate "2022.07.29"]
[EventType "team-tourn"]
[EventCountry "IND"]
[SourceTitle "playchess.com"]
[Source "ChessBase"]
[SourceQuality "1"]
[WhiteTeam "India"]
[BlackTeam "Georgia"]
[WhiteTeamCountry "IND"]
[BlackTeamCountry "GEO"]
[TimeControl "40/5400+30:1800+30"]

1. d4 {[%emt 0:00:04]} Nf6 {[%emt 0:00:12]} 2. c4 {[%emt 0:00:03]} e6 {[%emt 0:00:06]} 3. Nf3 {[%emt 0:00:05]} b6 {[%emt 0:00:31]} 4. a3 {[%emt 0:00:10]} Bb7 {[%emt 0:00:13]} 5. Nc3 {[%emt 0:00:15]} d5 {[%emt 0:00:12]} 6. cxd5 {[%emt 0:00:07]} Nxd5 {[%emt 0:00:05]} 7. e3 {[%emt 0:00:10]} Be7 {[%emt 0:00:24]} 8. Bb5+ {[%emt 0:00:04]} c6 {[%emt 0:00:04]} 9. Bd3 {[%emt 0:00:05]} O-O {[%emt 0:01:37]} 10. e4 {[%emt 0:03:21]} Nxc3 {[%emt 0:00:08]} 11. bxc3 {[%emt 0:00:05]} c5 {[%emt 0:00:04]} 12. O-O {[%emt 0:02:32]} cxd4 {[%emt 0:01:28]} 13. cxd4 {[%emt 0:00:12]} Nc6 {[%emt 0:00:08]} 14. Bb2 {[%emt 0:14:15]} Bf6 {[%emt 0:00:17]} 15. Bb1 {[%emt 0:01:38]} Na5 {[%emt 0:02:59]} 16. Qd3 {[%emt 0:02:11]} g6 {[%emt 0:00:21]} 17. Ba2 {[%emt 0:08:14]} Rc8 {[%emt 0:12:13]} 18. g3 {[%emt 0:14:41]} b5 {[%emt 0:04:27]} 19. Rfe1 {[%emt 0:12:47]} Nc4 {[%emt 0:01:18]} 20. Bc1 {[%emt 0:00:35]} Qd7 {[%emt 0:15:31]} 21. a4 {[%emt 0:07:51]} a6 {[%emt 0:00:29]} 22. axb5 {[%emt 0:12:42]} axb5 {[%emt 0:00:08]} 23. Bg5 {[%emt 0:01:16]} Bg7 {[%emt 0:03:05]} 24. Rab1 {[%emt 0:10:31]} f5 {[%emt 0:08:08]} 25. e5 {[%emt 0:00:23]} h6 {[%emt 0:05:39]} 26. Bc1 {[%emt 0:00:12]} Qd5 {[%emt 0:01:51]} 27. Rb3 {[%emt 0:01:13]} g5 {[%emt 0:06:09]} 28. Kf1 {[%emt 0:00:08]} Rfd8 {[%emt 0:03:48]} 29. Qb1 {[%emt 0:06:20]} Bc6 {[%emt 0:03:25]} 30. Rd3 {[%emt 0:00:53]} Ra8 {[%emt 0:04:13]} 31. Bb3 {[%emt 0:00:22]} Bf8 {[%emt 0:07:08]} 32. h3 {[%emt 0:00:39]} Be7 {[%emt 0:01:29]} 33. Red1 {[%emt 0:00:28]} Rf8 {[%emt 0:01:42]} 34. Rc3 {[%emt 0:00:28]} Kg7 {[%emt 0:03:00]} 35. Ke2 {[%emt 0:01:55]} Bb7 {[%emt 0:02:49]} 36. h4 {[%emt 0:00:48]} g4 {[%emt 0:04:51]} 37. Ne1 {[%emt 0:00:19]} Ba6 {[%emt 0:00:31]} 38. Bxc4 {[%emt 0:00:52]} bxc4 {[%emt 0:00:06]} 39. Ba3 {[%emt 0:00:31]} Bxa3 {[%emt 0:03:49]} 40. Rxa3 {[%emt 0:00:02]} c3+ {[%emt 0:01:05]} 41. Rxa6 {[%emt 0:10:04]} Rxa6 {[%emt 0:00:35]} 42. Qd3 {[%emt 0:00:04]} Ra2+ {[%emt 0:02:40]} 43. Nc2 {[%emt 0:02:56]} Qe4+ {[%emt 0:11:05]} 44. Qxe4 {[%emt 0:00:12]} fxe4 {[%emt 0:00:02]} 45. Rc1 {[%emt 0:00:19]} Rf3 {[%emt 0:05:13]} 46. Ke1 {[%emt 0:00:16]} h5 {[%emt 0:00:39]} 47. Ke2 {[%emt 0:03:28]} Rb2 {[%emt 0:01:15]} 48. Ke1 {[%emt 0:00:24]} Kg6 {[%emt 0:00:34]} 49. Ke2 {[%emt 0:00:15]} Rd3 {[%emt 0:00:39]} 50. Ke1 {[%emt 0:00:05]} Rd2 {[%emt 0:00:58]} 0-1

[Event "44th Chess Olympiad Women 2022"]
[Site "Chennai"]
[Date "2022.08.02"]
[Round "5.4"]
[White "Kashlinskaya, Alina"]
[Black "Bulmaga, Irina"]
[Result "1/2-1/2"]
[ECO "D37"]
[WhiteElo "2505"]
[BlackElo "2394"]
[Annotator "RC"]
[PlyCount "124"]
[EventDate "2022.07.29"]
[EventType "team-tourn"]
[EventCountry "IND"]
[SourceTitle "playchess.com"]
[Source "ChessBase"]
[SourceQuality "1"]
[WhiteTeam "Poland"]
[BlackTeam "Romania"]
[WhiteTeamCountry "POL"]
[BlackTeamCountry "ROU"]
[TimeControl "40/5400+30:1800+30"]

1. d4 {[%emt 0:00:04]} Nf6 {[%emt 0:00:08]} 2. c4 {[%emt 0:00:05]} e6 {[%emt 0:00:06]} 3. Nf3 {[%emt 0:00:07]} d5 {[%emt 0:00:07]} 4. Nc3 {[%emt 0:00:10]} Be7 {[%emt 0:00:16]} 5. Bf4 {[%emt 0:00:10]} O-O {[%emt 0:00:29]} 6. e3 {[%emt 0:00:08]} b6 {[%emt 0:00:21]} 7. Bd3 {[%emt 0:01:06]} dxc4 {[%emt 0:00:30]} 8. Bxc4 {[%emt 0:00:06]} Ba6 {[%emt 0:00:31]} 9. Qe2 {[%emt 0:10:15]} Qc8 {[%emt 0:00:29]} 10. O-O {[%emt 0:01:59]} Bxc4 {[%emt 0:00:37]} 11. Qxc4 {[%emt 0:00:06]} c5 {[%emt 0:00:25]} 12. Rac1 {[%emt 0:08:31]} Nbd7 {[%emt 0:05:25]} 13. Rfd1 {[%emt 0:06:09]} Qb7 {[%emt 0:12:09]} 14. Nb5 {[%emt 0:16:05]} a6 {[%emt 0:15:49]} 15. Nd6 {[%emt 0:03:09]} Bxd6 {[%emt 0:05:07]} 16. Bxd6 {[%emt 0:00:13]} Rfc8 {[%emt 0:00:41]} 17. Qb3 {[%emt 0:16:53]} Ne4 {[%emt 0:15:05]} 18. dxc5 {[%emt 0:00:25]} Ndxc5 {[%emt 0:01:30]} 19. Bxc5 {[%emt 0:05:37]} Nxc5 {[%emt 0:02:52]} 20. Qb4 {[%emt 0:00:40]} h6 {[%emt 0:06:52]} 21. h3 {[%emt 0:00:16]} a5 {[%emt 0:04:46]} 22. Qb5 {[%emt 0:05:02]} Qa6 {[%emt 0:03:56]} 23. Qxa6 {[%emt 0:01:59]} Nxa6 {[%emt 0:00:10]} 24. Kf1 {[%emt 0:05:21]} Nc5 {[%emt 0:04:39]} 25. Rc2 {[%emt 0:01:07]} Ne4 {[%emt 0:04:14]} 26. Rdc1 {[%emt 0:00:42]} Rc5 {[%emt 0:03:53]} 27. Ke2 {[%emt 0:06:22]} Kf8 {[%emt 0:00:50]} 28. Rxc5 {[%emt 0:05:09]} Nxc5 {[%emt 0:00:07]} 29. Ne5 {[%emt 0:01:23]} Ke7 {[%emt 0:03:49]} 30. Nc4 {[%emt 0:00:48]} Nd7 {[%emt 0:00:53]} 31. Rd1 {[%emt 0:00:25]} Ra7 {[%emt 0:01:32]} 32. e4 {[%emt 0:03:02]} Rc7 {[%emt 0:00:41]} 33. Ne3 {[%emt 0:00:06]} g5 {[%emt 0:01:49]} 34. g3 {[%emt 0:00:24]} b5 {[%emt 0:00:49]} 35. f4 {[%emt 0:00:17]} gxf4 {[%emt 0:00:23]} 36. gxf4 {[%emt 0:00:02]} Nb6 {[%emt 0:02:22]} 37. h4 {[%emt 0:00:40]} h5 {[%emt 0:01:55]} 38. Rg1 {[%emt 0:00:22]} Na4 {[%emt 0:01:06]} 39. Rg5 {[%emt 0:00:22]} Nxb2 {[%emt 0:00:54]} 40. Rxb5 {[%emt 0:00:48]} Nc4 {[%emt 0:00:42]} 41. a4 {[%emt 0:08:16]} Nd6 {[%emt 0:14:59]} 42. Rxh5 {[%emt 0:01:07]} Rc3 {[%emt 0:01:58]} 43. Rxa5 {[%emt 0:16:27]} Rxe3+ {[%emt 0:06:29]} 44. Kxe3 {[%emt 0:00:03]} Nc4+ {[%emt 0:00:04]} 45. Kd4 {[%emt 0:00:03]} Nxa5 {[%emt 0:00:04]} 46. e5 {[%emt 0:01:16]} Kf8 {[%emt 0:03:33]} 47. Kc5 {[%emt 0:00:04]} Kg7 {[%emt 0:00:23]} 48. Kd6 {[%emt 0:03:46]} Nb7+ {[%emt 0:05:33]} 49. Ke7 {[%emt 0:00:55]} Nc5 {[%emt 0:00:13]} 50. a5 {[%emt 0:00:10]} Kg6 {[%emt 0:00:56]} 51. Ke8 {[%emt 0:02:26]} Kh5 {[%emt 0:00:54]} 52. Kxf7 {[%emt 0:00:23]} Kxh4 {[%emt 0:00:08]} 53. Ke7 {[%emt 0:02:53]} Kg4 {[%emt 0:00:09]} 54. Kd6 {[%emt 0:00:02]} Nb7+ {[%emt 0:00:32]} 55. Kxe6 {[%emt 0:00:02]} Nxa5 {[%emt 0:00:52]} 56. f5 {[%emt 0:01:27]} Nc6 {[%emt 0:01:09]} 57. f6 {[%emt 0:01:48]} Kf4 {[%emt 0:00:19]} 58. f7 {[%emt 0:00:41]} Nd8+ {[%emt 0:00:05]} 59. Kd5 {[%emt 0:00:12]} Nxf7 {[%emt 0:00:07]} 60. e6 {[%emt 0:00:04]} Nh6 {[%emt 0:01:18]} 61. e7 {[%emt 0:00:15]} Ng8 {[%emt 0:00:06]} 62. Ke6 {[%emt 0:00:04]} Nxe7 {[%emt 0:00:06]} 1/2-1/2

[Event "44th Chess Olympiad Women 2022"]
[Site "Chennai"]
[Date "2022.08.02"]
[Round "5.4"]
[White "Kiolbasa, Oliwia"]
[Black "Ciolacu, Alessia-Mihaela"]
[Result "1-0"]
[ECO "C60"]
[WhiteElo "2376"]
[BlackElo "2163"]
[Annotator "RC"]
[PlyCount "75"]
[EventDate "2022.07.29"]
[EventType "team-tourn"]
[EventCountry "IND"]
[SourceTitle "playchess.com"]
[Source "ChessBase"]
[SourceQuality "1"]
[WhiteTeam "Poland"]
[BlackTeam "Romania"]
[WhiteTeamCountry "POL"]
[BlackTeamCountry "ROU"]
[TimeControl "40/5400+30:1800+30"]

1. e4 {[%emt 0:00:04]} e5 {[%emt 0:00:09]} 2. Nf3 {[%emt 0:00:09]} Nc6 {[%emt 0:00:06]} 3. Bb5 {[%emt 0:00:10]} g6 {[%emt 0:00:10]} 4. c3 {[%emt 0:04:29]} a6 {[%emt 0:00:14]} 5. Bxc6 {[%emt 0:03:00]} dxc6 {[%emt 0:00:12]} 6. d4 {[%emt 0:00:07]} exd4 {[%emt 0:00:34]} 7. cxd4 {[%emt 0:00:09]} Bg4 {[%emt 0:03:26]} 8. Be3 {[%emt 0:04:18]} Bg7 {[%emt 0:01:30]} 9. Nc3 {[%emt 0:04:51]} Ne7 {[%emt 0:11:32]} 10. O-O {[%emt 0:07:46]} O-O {[%emt 0:01:07]} 11. h3 {[%emt 0:10:19]} Bxf3 {[%emt 0:08:10]} 12. Qxf3 {[%emt 0:00:16]} f5 {[%emt 0:00:54]} 13. Bg5 {[%emt 0:03:27]} h6 {[%emt 0:03:43]} 14. Bxe7 {[%emt 0:03:07]} Qxe7 {[%emt 0:00:02]} 15. e5 {[%emt 0:01:05]} Rad8 {[%emt 0:01:32]} 16. Rad1 {[%emt 0:01:22]} Rfe8 {[%emt 0:31:05]} 17. Ne2 {[%emt 0:02:15]} c5 {[%emt 0:04:29]} 18. Qxb7 {[%emt 0:05:15]} Rb8 {[%emt 0:15:46]} 19. Qxa6 {[%emt 0:06:06]} Rxb2 {[%emt 0:00:26]} 20. Nf4 {[%emt 0:00:21]} cxd4 {[%emt 0:02:40]} 21. Qc4+ {[%emt 0:05:20]} Kh7 {[%emt 0:00:20]} 22. Nd3 {[%emt 0:00:07]} Rbb8 {[%emt 0:05:39]} 23. f4 {[%emt 0:07:16]} Red8 {[%emt 0:04:49]} 24. Rc1 {[%emt 0:04:15]} Qa3 {[%emt 0:00:43]} 25. Rf3 {[%emt 0:00:46]} Ra8 {[%emt 0:00:40]} 26. Rc2 {[%emt 0:00:15]} Ra7 {[%emt 0:01:32]} 27. Nb4 {[%emt 0:05:50]} Qa4 {[%emt 0:00:04]} 28. Nc6 {[%emt 0:05:47]} d3 {[%emt 0:00:06]} 29. Rxd3 {[%emt 0:00:35]} Qxc4 {[%emt 0:01:45]} 30. Rxc4 {[%emt 0:00:05]} Rxd3 {[%emt 0:00:06]} 31. Nxa7 {[%emt 0:00:04]} Ra3 {[%emt 0:00:12]} 32. Rxc7 {[%emt 0:00:49]} Rxa2 {[%emt 0:00:55]} 33. Nb5 {[%emt 0:00:30]} Re2 {[%emt 0:01:13]} 34. Nd6 {[%emt 0:01:53]} Kg8 {[%emt 0:00:07]} 35. Ne8 {[%emt 0:01:46]} Bh8 {[%emt 0:00:25]} 36. Rc8 {[%emt 0:00:29]} Kh7 {[%emt 0:00:20]} 37. Nf6+ {[%emt 0:00:25]} Bxf6 {[%emt 0:01:19]} 38. exf6 {[%emt 0:00:05]} 1-0

[Event "44th Chess Olympiad Women 2022"]
[Site "Chennai"]
[Date "2022.08.02"]
[Round "5.4"]
[White "Sandu, Mihaela"]
[Black "Socko, Monika"]
[Result "1-0"]
[ECO "C42"]
[WhiteElo "2297"]
[BlackElo "2416"]
[Annotator "RC"]
[PlyCount "67"]
[EventDate "2022.07.29"]
[EventType "team-tourn"]
[EventCountry "IND"]
[SourceTitle "playchess.com"]
[Source "ChessBase"]
[SourceQuality "1"]
[WhiteTeam "Romania"]
[BlackTeam "Poland"]
[WhiteTeamCountry "ROU"]
[BlackTeamCountry "POL"]
[TimeControl "40/5400+30:1800+30"]

1. e4 {[%emt 0:00:04]} e5 {[%emt 0:00:04]} 2. Nf3 {[%emt 0:00:06]} Nf6 {[%emt 0:00:03]} 3. Nxe5 {[%emt 0:00:17]} d6 {[%emt 0:00:04]} 4. Nf3 {[%emt 0:00:04]} Nxe4 {[%emt 0:00:09]} 5. d4 {[%emt 0:00:25]} d5 {[%emt 0:00:30]} 6. Bd3 {[%emt 0:00:23]} Bf5 {[%emt 0:00:15]} 7. O-O {[%emt 0:00:59]} Be7 {[%emt 0:00:03]} 8. c4 {[%emt 0:02:09]} dxc4 {[%emt 0:10:37]} 9. Bxc4 {[%emt 0:03:07]} Nd6 {[%emt 0:01:11]} 10. Bb3 {[%emt 0:01:19]} O-O {[%emt 0:02:22]} 11. Ne5 {[%emt 0:12:26]} Nd7 {[%emt 0:04:51]} 12. Nc3 {[%emt 0:03:19]} Nf6 {[%emt 0:13:21]} 13. Qf3 {[%emt 0:11:17]} c6 {[%emt 0:06:59]} 14. d5 {[%emt 0:13:02]} c5 {[%emt 0:07:33]} 15. Re1 {[%emt 0:04:36]} Rc8 {[%emt 0:04:00]} 16. Bg5 {[%emt 0:13:13]} h6 {[%emt 0:06:44]} 17. Bh4 {[%emt 0:01:23]} Bh7 {[%emt 0:04:57]} 18. Ba4 {[%emt 0:13:53]} Rc7 {[%emt 0:12:48]} 19. Rad1 {[%emt 0:01:17]} a6 {[%emt 0:00:48]} 20. Rd2 {[%emt 0:01:00]} Qc8 {[%emt 0:04:02]} 21. g4 {[%emt 0:06:36]} Qd8 {[%emt 0:04:30]} 22. Bg3 {[%emt 0:00:51]} Nfe8 {[%emt 0:01:06]} 23. Rde2 {[%emt 0:03:54]} Bf6 {[%emt 0:09:49]} 24. Bxe8 {[%emt 0:02:59]} Nxe8 {[%emt 0:00:21]} 25. d6 {[%emt 0:00:39]} Nxd6 {[%emt 0:00:35]} 26. Nd5 {[%emt 0:01:40]} Bxe5 {[%emt 0:00:37]} 27. Bxe5 {[%emt 0:00:53]} Rd7 {[%emt 0:00:30]} 28. Bf6 {[%emt 0:00:52]} Qa5 {[%emt 0:01:34]} 29. Bxg7 {[%emt 0:00:28]} Kxg7 {[%emt 0:00:54]} 30. Qf6+ {[%emt 0:00:05]} Kg8 {[%emt 0:00:04]} 31. Qxh6 {[%emt 0:00:41]} f6 {[%emt 0:03:34]} 32. Re7 {[%emt 0:00:19]} Rf7 {[%emt 0:00:53]} 33. Nxf6+ {[%emt 0:00:06]} Kh8 {[%emt 0:00:30]} 34. Re8+ {[%emt 0:00:23]} 1-0